fUST/lending_fUST_20251017
["ID","MTS","AMOUNT","RATE_DAILY","PERIOD"]
[391560622,1760655038255,-595.67761525,0.00043302,2]
[391560624,1760655038268,-1334.28828418,0.00043499,2]
[391560626,1760655038277,-1305.4069586,0.00043525,2]
[391560628,1760655038287,-152.0,0.000436,14]
[391560630,1760655038299,-152.0,0.000436,14]
[391560645,1760655038430,-152.0,0.000436,14]
[391560647,1760655038440,-152.0,0.000436,14]
[391560649,1760655038450,-330.0,0.000436,14]
[391560651,1760655038459,-330.0,0.000436,14]
[391560653,1760655038469,-330.0,0.000436,14]
[391560655,1760655038478,-330.0,0.000436,14]
[391560657,1760655038487,-152.0,0.000436,14]
[391560659,1760655038496,-152.0,0.000436,14]
[391560661,1760655038505,-152.0,0.000436,14]
[391560663,1760655038513,-152.0,0.000436,14]
[391560665,1760655038523,-152.0,0.000436,14]
[391560667,1760655038532,-152.0,0.000436,14]
[391560669,1760655038541,-152.0,0.000436,14]
[391560671,1760655038551,-152.0,0.000436,14]
[391560673,1760655038560,-152.0,0.000436,14]
[391560675,1760655038572,-523.0,0.000436,14]
[391560677,1760655038581,-151.36530386,0.000436,14]
[391560678,1760655038591,-151.0,0.000436,14]
[391560680,1760655038601,-151.27512248,0.000436,14]
[391560682,1760655038610,-152.15912811,0.000436,2]
[391560685,1760655038620,-198.0,0.000436,14]
[391560686,1760655038631,-151.0,0.000436,14]
[391560688,1760655038641,-151.0,0.000436,14]
[391560691,1760655038651,-152.0,0.000436,14]
[391560693,1760655038661,-152.0,0.000436,14]
[391560695,1760655038670,-152.0,0.000436,14]
[391560697,1760655038680,-152.0,0.000436,14]
[391560699,1760655038690,-152.0,0.000436,14]
[391560701,1760655038700,-152.0,0.000436,14]
[391560703,1760655038712,-330.0,0.000436,14]
[391560705,1760655038722,-330.0,0.000436,14]
[391560707,1760655038731,-330.0,0.000436,14]
[391560709,1760655038741,-152.0,0.000436,14]
[391560711,1760655038750,-152.0,0.000436,14]
[391560713,1760655038760,-152.0,0.000436,14]
[391560715,1760655038768,-128.66543272,0.000436,14]
[391560717,1760655038781,-23.33456728,0.000436,14]
[391560719,1760655038790,-152.0,0.000436,14]
[391560721,1760655038798,-523.0,0.00043655,14]
[391560723,1760655038808,-523.0,0.0004371,14]
[391560725,1760655038819,-523.0,0.00043764,14]
[391560727,1760655038828,-523.0,0.00043819,14]
[391560729,1760655038838,-523.0,0.00043874,14]
[391560731,1760655038848,-523.0,0.00043929,14]
[391560733,1760655038858,-523.0,0.00043984,14]
[391560735,1760655038867,-3417.34672,0.00044,120]
[391560737,1760655038877,-523.0,0.00044038,14]
[391560738,1760655038890,-151.0,0.00044063,28]
[391560741,1760655038900,-151.0,0.00044063,28]
[391560743,1760655038910,-523.0,0.00044093,14]
[391560744,1760655038920,-265.51895619,0.00044118,28]
[391560746,1760655038929,-523.0,0.00044148,14]
[391560749,1760655038940,-405.0,0.00044163,120]
[391560750,1760655038950,-523.0,0.00044203,14]
[391560752,1760655038959,-523.0,0.00044258,14]
[391560754,1760655038969,-250.0,0.00044308,2]
[391560756,1760655038978,-250.0,0.00044308,2]
[391560758,1760655038988,-151.0,0.00044308,2]
[391560760,1760655038998,-250.0,0.00044308,2]
[391560762,1760655039007,-250.0,0.00044308,2]
[391560764,1760655039017,-250.0,0.00044308,2]
[391560766,1760655039027,-250.0,0.00044308,2]
[391560768,1760655039037,-250.0,0.00044308,2]
[391560770,1760655039046,-250.0,0.00044308,2]
[391560772,1760655039056,-250.0,0.00044308,2]
[391560774,1760655039065,-250.0,0.00044308,2]
[391560776,1760655039075,-250.0,0.00044308,2]
[391560778,1760655039085,-269.14409156,0.00044308,2]
[391560780,1760655039094,-250.0,0.00044308,2]
[391560782,1760655039104,-250.0,0.00044308,2]
[391560784,1760655039113,-250.0,0.00044308,2]
[391560786,1760655039123,-250.0,0.00044308,2]
[391560788,1760655039135,-250.0,0.00044308,2]
[391560790,1760655039145,-250.0,0.00044308,2]
[391560792,1760655039156,-250.0,0.00044308,2]
[391560794,1760655039166,-250.0,0.00044308,2]
[391560796,1760655039176,-250.0,0.00044308,2]
[391560798,1760655039187,-250.0,0.00044308,2]
[391560800,1760655039197,-250.0,0.00044308,2]
[391560803,1760655039207,-277.8792947,0.00044308,2]
[391560806,1760655039217,-250.0,0.00044308,2]
[391560809,1760655039228,-250.0,0.00044308,2]
[391560812,1760655039238,-250.0,0.00044308,2]
[391560815,1760655039248,-1000.0,0.00044308,2]
[391560818,1760655039262,-1000.0,0.00044308,2]
[391560820,1760655039272,-1000.0,0.00044308,2]
[391560822,1760655039281,-1000.0,0.00044308,2]
[391560824,1760655039290,-1000.0,0.00044308,2]
[391560826,1760655039300,-1000.0,0.00044308,2]
[391560828,1760655039311,-250.0,0.00044308,2]
[391560830,1760655039320,-151.0,0.00044308,2]
[391560832,1760655039330,-250.0,0.00044308,2]
[391560834,1760655039339,-250.0,0.00044308,2]
[391560836,1760655039349,-250.0,0.00044308,2]
[391560838,1760655039359,-250.0,0.00044308,2]
[391560840,1760655039368,-250.0,0.00044308,2]
[391560842,1760655039377,-250.0,0.00044308,2]
[391560844,1760655039387,-250.0,0.00044308,2]
[391560845,1760655039396,-250.0,0.00044308,2]
[391560847,1760655039406,-523.0,0.00044312,14]
[391560849,1760655039415,-523.0,0.00044367,14]
[391560852,1760655039426,-891.64755303,0.00044383,120]
[391560855,1760655039436,-57779.1305362,0.0004439,3]
[391560857,1760655039447,-245.04206226,0.0004439,3]
[391560860,1760655039456,-500.0,0.00044399,120]
[391560861,1760655039465,-1999.0,0.00044399,120]
[391560863,1760655039475,-158.08024715,0.00044399,31]
[391560866,1760655039484,-272.01818292,0.00044399,120]
[391560868,1760655039494,-24351.04405504,0.000444,120]
[391560869,1760655039504,-523.0,0.00044422,14]
[391560871,1760655039513,-639.11921808,0.0004447,2]
[391560873,1760655039522,-523.0,0.00044477,14]
[391560875,1760655039531,-523.0,0.00044532,14]
[391560878,1760655039541,-523.0,0.00044586,14]
[391560880,1760655039552,-523.0,0.00044641,14]
[391560881,1760655039562,-405.0,0.00044642,2]
[391560884,1760655039571,-523.0,0.00044696,14]
[391560886,1760655039581,-151.0,0.00044698,60]
[391560888,1760655039590,-523.0,0.00044751,14]
[391560890,1760655039599,-151.0,0.00044753,60]
[391560892,1760655039608,-1129.61539812,0.00044753,2]
[391560893,1760655039618,-405.0,0.00044769,7]
[391560895,1760655039627,-523.0,0.00044805,14]
[391560898,1760655039637,-245.0,0.00044808,60]
[391560900,1760655039651,-57779.1305362,0.00044843,3]
[391560902,1760655039662,-245.04206226,0.00044843,3]
[391560905,1760655039675,-231116.522145,0.00044852,3]
[391560907,1760655039687,-1960.33649808,0.00044852,3]
[391560909,1760655039698,-323.177644,0.00044853,20]
[391560911,1760655039711,-540.73608669,0.0004486,14]
[391560913,1760655039721,-370000.0,0.00044862,2]
[391560916,1760655039732,-500.0,0.00044873,10]
[391560918,1760655039744,-500.0,0.00044973,10]
[391560920,1760655039756,-490.08412452,0.0004499,3]
[391560922,1760655039767,-405.0,0.00044998,2]
[391560924,1760655039779,-10099.97,0.00045,30]
[391560926,1760655039790,-870.76032463,0.00045,20]
[391560929,1760655039802,-10364.92783549,0.00045,120]
[391560931,1760655039813,-50844.97536396,0.00045,120]
[391560933,1760655039826,-583.28,0.00045,7]
[391560935,1760655039837,-2066.47,0.00045,14]
[391560938,1760655039848,-5000.0,0.00045,120]
[391560940,1760655039860,-1129.61539808,0.0004504,2]
[391560942,1760655039871,-666.44,0.000452,14]
[391560944,1760655039883,-238.905392,0.00045205,120]
[391560946,1760655039896,-405.0,0.00045263,2]
[391560949,1760655039906,-177.64477798,0.000453,26]
[391560951,1760655039918,-1129.61539808,0.00045327,2]
[391560953,1760655039930,-406.0,0.00045358,2]
[391560955,1760655039940,-10000.0,0.000454,120]
[391560957,1760655039951,-468.33129304,0.000454,120]
[391560959,1760655039964,-1000.0,0.00045421,10]
[391560961,1760655039975,-1960.33649808,0.00045434,3]
[391560964,1760655039985,-500.0,0.00045441,30]
[391560966,1760655039996,-538882.41880811,0.00045444,30]
[391560979,1760655040110,-527.999115,0.00045444,30]
[391560981,1760655040124,-300.0,0.00045444,30]
[391560983,1760655040136,-119883.03007689,0.00045444,30]
[391560985,1760655040148,-151.0,0.00045444,120]
[391560988,1760655040159,-151.0,0.00045444,120]
[391560990,1760655040170,-151.0,0.00045444,120]
[391560992,1760655040180,-151.0,0.00045444,120]
[391560994,1760655040192,-151.0,0.00045444,120]
[391560996,1760655040203,-151.0,0.00045444,120]
[391560999,1760655040214,-500.0,0.00045473,10]
[391561001,1760655040226,-500.0,0.00045473,10]
[391561003,1760655040237,-500.0,0.00045473,2]
[391561005,1760655040248,-155.85952,0.00045504,20]
[391561008,1760655040264,-181.27775221,0.00045521,10]
[391561010,1760655040275,-1129.61539808,0.00045613,2]
[391561012,1760655040287,-9968.20819199,0.000457,44]
[391561014,1760655040299,-406.0,0.00045737,7]
[391561017,1760655040309,-406.0,0.0004575,120]
[391561019,1760655040323,-500.0,0.00045769,120]
[391561021,1760655040333,-1999.0,0.00045769,120]
[391561023,1760655040343,-160.0,0.00045804,3]
[391561024,1760655040353,-405.0,0.00045866,7]
[391561027,1760655040363,-1129.61539808,0.000459,2]
[391561029,1760655040373,-405.0,0.00045942,7]
[391561031,1760655040384,-1500.0,0.00045968,10]
[391561033,1760655040394,-25095.71731411,0.00046,120]
[391561035,1760655040407,-42122.46984698,0.00046,120]
[391561274,1760655042792,-12.47177647,0.00046,120]
[391561284,1760655042892,-1001.3836238,0.00046,120]
[391561508,1760655045794,-593.05711998,0.00046,120]
[391562305,1760655584826,417.15472785,0.00027,2]
[391562306,1760655599979,150.0,0.00025205,2]
[391562307,1760655600410,172.5,0.00025805,2]
[391562308,1760655600717,195.0,0.00026405,2]
[391562339,1760655924883,300.0,0.000264,2]
[391562340,1760655935461,300.0,0.000264,2]
[391562341,1760655945761,300.0,0.000264,2]
[391562342,1760655953044,1631.8,0.00027,2]
[391562343,1760655956629,300.0,0.000264,2]
[391562345,1760655967068,300.0,0.000264,2]
[391562346,1760656052155,-217.5,0.00027005,2]
[391562347,1760656052176,-146.12961262,0.00027005,2]
[391562349,1760656119011,160.0,0.00027,2]
[391562357,1760656150122,-53.87038738,0.00027005,2]
[391562358,1760656154198,419.951802,0.00013699,2]
[391562359,1760656154407,419.951802,0.00020187,2]
[391562360,1760656154612,419.951802,0.00026676,2]
[391562361,1760656159320,425.0,0.00029041,120]
[391562362,1760656213898,120.01420662,0.00025205,2]
[391562363,1760656213923,29.98579338,0.00025205,2]
[391562364,1760656214260,172.5,0.00025805,2]
[391562365,1760656214735,195.0,0.00026405,2]
[391562381,1760656232156,-217.5,0.00027005,2]
[391562382,1760656232167,-224.5666617,0.00027605,2]
[391562383,1760656232181,-15.4333383,0.00027605,2]
[391562385,1760656232191,-155.678295,0.00028818,20]
[391562386,1760656232202,-155.678295,0.00029458,20]
[391562387,1760656232213,-156.581031,0.00029458,20]
[391562388,1760656232224,-2387.9283186,0.00029725,2]
[391562389,1760656232235,-1200.0,0.00029849,2]
[391562390,1760656232246,-380.0,0.0002985,2]
[391562391,1760656232257,-666.0,0.0002985,2]
[391562392,1760656232268,-180.00641475,0.000304,2]
[391562393,1760656232279,-471.0,0.00031612,3]
[391562394,1760656232289,-29079.91974078,0.00031612,2]
[391562395,1760656232299,-1200.0,0.00032313,3]
[391562396,1760656232309,-400.0,0.00032797,3]
[391562397,1760656232319,-300.0,0.00032797,3]
[391562398,1760656232329,-300.0,0.00032797,2]
[391562399,1760656232338,-300.0,0.00032797,3]
[391562400,1760656232348,-400.0,0.00032797,3]
[391562401,1760656232358,-1000.0,0.000328,2]
[391562402,1760656232368,-1000.0,0.000328,2]
[391562403,1760656232378,-8244.60362395,0.000328,120]
[391562404,1760656232388,-501.55939196,0.000328,5]
[391562405,1760656232398,-2258.09,0.00032825,2]
[391562406,1760656232409,-474.25774169,0.00032883,4]
[391562407,1760656232421,-214.60001445,0.000329,2]
[391562408,1760656232431,-211.63900235,0.000329,2]
[391562409,1760656232441,-160.0,0.00032946,2]
[391562410,1760656232451,-160.0,0.00032946,2]
[391562411,1760656232462,-419.951802,0.00033165,2]
[391562412,1760656232472,-214.60001445,0.000332,2]
[391562413,1760656232482,-845.5095289,0.00033485,2]
[391562414,1760656232492,-402.43064913,0.00033498,2]
[391562415,1760656232502,-214.60001445,0.000335,2]
[391562416,1760656232511,-214.60001445,0.000338,2]
[391562417,1760656232522,-214.60001445,0.000342,2]
[391562419,1760656232532,-200.0,0.00035246,3]
[391562420,1760656232541,-2009.17208784,0.00035809,2]
[391562461,1760656239028,-2507.00791216,0.00035809,2]
[391562472,1760656239157,-435.42715563,0.00038128,2]
[391562474,1760656239169,-572.30809994,0.00038793,2]
[391562476,1760656239184,-5234.08996627,0.00038793,2]
[391562573,1760656240399,-271.35708111,0.00038793,2]
[391565122,1760656513038,417.15472785,0.00027,2]
[391565123,1760656564199,500.0,0.000253,2]
[391565124,1760656582544,264.94539134,0.00027,2]
[391565125,1760656634000,5837.0,0.00025,2]
[391565126,1760656826657,150.0,0.00025205,2]
[391565127,1760656827037,172.5,0.00025805,2]
[391565128,1760656827415,195.87435473,0.00026405,2]
[391565131,1760657124354,2462.53552608,0.00025205,3]
[391565132,1760657124378,10000.01,0.00025205,3]
[391565133,1760657124402,10000.01,0.00025205,3]
[391565134,1760657124425,10000.01,0.00025205,3]
[391565135,1760657124448,7537.43447392,0.00025205,3]
[391565146,1760657278640,2462.57552608,0.00024774,2]
[391565147,1760657278664,10000.01,0.00024774,2]
[391565148,1760657278800,4193.73501075,0.00024774,2]
[391565150,1760657295464,570.4,0.00029041,120]
[391565151,1760657299448,273.93004396,0.00021,2]
[391565152,1760657305917,300.0,0.000252,2]
[391565153,1760657309313,6673.81573376,0.00029,120]
[391565154,1760657310765,260.05789957,0.0002,30]
[391565155,1760657312467,3857.26837882,0.00025,2]
[391565156,1760657314086,1115.0186669,0.00025,30]
[391565157,1760657314110,10000.01,0.00025,30]
[391565158,1760657314134,10000.01,0.00025,30]
[391565159,1760657314157,10000.01,0.00025,30]
[391565160,1760657314181,10000.01,0.00025,30]
[391565161,1760657314203,5884.9413331,0.00025,30]
[391565162,1760657314274,524.61203572,0.00026,2]
[391565163,1760657319715,150.999999,0.00021,2]
[391565164,1760657320092,-4089.6542959,0.00028,3]
[391565171,1760657322093,1000.0,0.000235,2]
[391565174,1760657323015,192.69273205,0.0002616,2]
[391565175,1760657323783,34832.36290894,0.00024142,2]
[391565176,1760657341175,-8850.25699212,0.000298,10]
[391565177,1760657341279,-1099.17440745,0.000298,10]
[391565178,1760657341303,-7801.6611851,0.000298,10]
[391565179,1760657367609,209.71989783,0.000252,2]
[391565211,1760657432116,-819.15344759,0.000299,5]
[391565212,1760657432125,-855.0,0.00029998,2]
[391565213,1760657432134,-300.0,0.00029998,2]
[391565215,1760657432144,-1950.83339572,0.00029999,2]
[391565222,1760657433476,417.15472785,0.00027,2]
[391565239,1760657437882,-4224.99257159,0.00029999,2]
[391565243,1760657438004,-1253.7573541,0.00029999,2]
[391565244,1760657438014,-500.0,0.00029999,2]
[391565245,1760657438023,-606.03242677,0.00029999,2]
[391565246,1760657438035,-500.0,0.00029999,2]
[391565247,1760657438044,-500.0,0.00029999,2]
[391565248,1760657438053,-500.0,0.00029999,2]
[391565249,1760657438064,-208.15082563,0.00029999,2]
[391565250,1760657438073,-630.27865276,0.00029999,2]
[391565251,1760657438082,-500.0,0.00029999,2]
[391565252,1760657438091,-488.61797628,0.00029999,2]
[391565253,1760657438100,-90069.2524492,0.0003,2]
[391565254,1760657438109,-3829.74361819,0.0003,2]
[391565255,1760657438118,-449.19740266,0.000301,5]
[391565256,1760657438127,-300.0,0.00030598,30]
[391565257,1760657438136,-300.0,0.00030598,30]
[391565258,1760657438145,-300.0,0.00030598,30]
[391565259,1760657438154,-150.32,0.00030611,15]
[391565260,1760657438163,-150.32,0.00030711,15]
[391565261,1760657438172,-303.36269188,0.0003099,2]
[391565262,1760657438181,-178.8995601,0.0003192,30]
[391565263,1760657438190,-12503.089633,0.00031954,2]
[391565264,1760657438199,-412.8529123,0.00031954,2]
[391565265,1760657438208,-10000.0,0.00031986,2]
[391565266,1760657438217,-10000.0,0.00031986,2]
[391565267,1760657438226,-5646.0,0.00031986,2]
[391565268,1760657438235,-550.4865,0.00032,120]
[391565269,1760657438245,-729.7943166,0.00032185,3]
[391565270,1760657438254,-219.81643052,0.00032284,2]
[391565271,1760657438263,-385.12814367,0.00032284,2]
[391565272,1760657438273,-323.177644,0.00032284,10]
[391565273,1760657438284,-77194.3038344,0.00032285,2]
[391565274,1760657438293,-3351.60736316,0.00032285,2]
[391565275,1760657438303,-4354.0,0.00032295,2]
[391565276,1760657438312,-597.87,0.000323,2]
[391565277,1760657438322,-683.1,0.000323,7]
[391565278,1760657438331,-300.0,0.00032331,2]
[391565279,1760657438341,-173.49654,0.00032658,60]
[391565280,1760657438350,-160.0,0.00032954,2]
[391565281,1760657438359,-160.0,0.00032954,2]
[391565282,1760657438368,-402.2877588,0.00032954,2]
[391565283,1760657438377,-4197.49872592,0.0003299,2]
[391565284,1760657438386,-93319.0,0.00033242,30]
[391565285,1760657438395,-198338.52062596,0.00033242,20]
[391565286,1760657438404,-10061.01100287,0.00033242,120]
[391565287,1760657438412,-2177.63979965,0.00033741,2]
[391565288,1760657438422,-1739.96691389,0.00033841,2]
[391565289,1760657438431,-179.65864857,0.00034291,12]
[391565290,1760657438440,-2208.67,0.00034394,2]
[391565291,1760657438450,-412.8529123,0.00035485,2]
[391565292,1760657438459,-2177.63979961,0.00035642,2]
[391565293,1760657438469,-30000.03,0.00035746,2]
[391565294,1760657438478,-2789.8163921,0.0003605,2]
[391565295,1760657438487,-170.00999113,0.00036298,2]
[391565296,1760657438497,-1378.86877705,0.00036535,2]
[391565297,1760657438506,-1378.86877705,0.00036932,2]
[391565298,1760657438515,-622.4921783,0.00036963,2]
[391565299,1760657438524,-1378.86877705,0.00037028,2]
[391565300,1760657438535,-77194.3038344,0.00037158,3]
[391565301,1760657438545,-3351.60736316,0.00037158,3]
[391565302,1760657438554,-500.0,0.000372,5]
[391565303,1760657438563,-1378.86877705,0.00037318,2]
[391565304,1760657438572,-4417.35,0.0003752,2]
[391565305,1760657438581,-2177.63979961,0.00037543,2]
[391565306,1760657438590,-683.1,0.000376,14]
[391565307,1760657438599,-1378.86877705,0.00037689,2]
[391565308,1760657438608,-1000.0,0.00037748,5]
[391565309,1760657438617,-1378.86877705,0.00037893,2]
[391565310,1760657438627,-1375.3181555,0.00038015,2]
[391565311,1760657438636,-1378.86877705,0.00038114,2]
[391565312,1760657438644,-500.0,0.00038267,5]
[391565313,1760657438653,-1500.0,0.00038296,5]
[391565314,1760657438662,-1378.86877706,0.00038554,2]
[391565315,1760657438671,-152.0,0.00038793,14]
[391565316,1760657438680,-152.0,0.00038793,14]
[391565317,1760657438689,-152.0,0.00038793,14]
[391565318,1760657438698,-152.0,0.00038793,14]
[391565319,1760657438707,-161.69979895,0.00038793,14]
[391565320,1760657438716,-330.0,0.00038793,14]
[391565321,1760657438725,-162.95094999,0.00038793,14]
[391565322,1760657438734,-500.0,0.00038815,5]
[391565323,1760657438743,-2000.0,0.00038844,5]
[391565324,1760657438752,-597.87,0.000389,2]
[391565325,1760657438761,-412.8529123,0.00039016,2]
[391565326,1760657438770,-2000.0,0.00039392,5]
[391565327,1760657438781,-2177.63979961,0.00039443,2]
[391565328,1760657438790,-23431.3649,0.00039444,7]
[391565329,1760657438799,-153.122323,0.0003964,60]
[391565330,1760657438809,-419.951802,0.00039654,2]
[391565331,1760657438818,-160.0,0.00039876,2]
[391565332,1760657438826,-1000.0,0.0004,120]
[391565333,1760657438835,-1851.25,0.0004,120]
[391565334,1760657438844,-6626.02,0.00040647,2]
[391565335,1760657438853,-500.0,0.00040973,5]
[391565336,1760657438862,-77194.3038344,0.00040989,3]
[391565337,1760657438871,-3351.60736316,0.00040989,3]
[391565338,1760657438880,-151.0,0.00040989,120]
[391565339,1760657438889,-1999.0,0.00040998,120]
[391565340,1760657438899,-6000.0,0.00040999,16]
[391565341,1760657438908,-2000.0,0.00040999,20]
[391565342,1760657438917,-1000.0,0.00041,120]
[391565343,1760657438928,-153.122323,0.00041008,20]
[391565344,1760657438937,-384.80362001,0.00041014,2]
[391565345,1760657438947,-25632.44,0.00041144,29]
[391565346,1760657438956,-177.64477798,0.00041244,11]
[391565347,1760657438965,-77194.3038344,0.00041274,3]
[391565348,1760657438975,-3351.60736316,0.00041274,3]
[391565349,1760657438985,-77194.3038344,0.00041305,3]
[391565350,1760657438998,-3351.60736316,0.00041305,3]
[391565351,1760657439007,-1240.11260853,0.0004131,120]
[391565352,1760657439016,-50000.0,0.00041315,120]
[391565353,1760657439025,-3351.60736316,0.00041334,3]
[391565354,1760657439038,-2177.63979961,0.00041344,2]
[391565355,1760657439048,-151.0,0.000414,14]
[391565356,1760657439057,-150.0,0.000414,2]
[391565357,1760657439067,-151.0,0.000414,10]
[391565358,1760657439076,-151.0,0.000414,13]
[391565359,1760657439085,-151.0,0.00041412,120]
[391565360,1760657439094,-151.0,0.00041412,120]
[391565361,1760657439103,-151.0,0.00041412,120]
[391565362,1760657439112,-6703.21472632,0.00041424,3]
[391565363,1760657439122,-1300.0,0.0004143,120]
[391565364,1760657439132,-3000.0,0.00041432,16]
[391565365,1760657439142,-500.0,0.00041433,120]
[391565366,1760657439151,-370.98072187,0.00041433,120]
[391565367,1760657439161,-151.0,0.00041434,120]
[391565368,1760657439171,-279.75546,0.00041434,120]
[391565369,1760657439180,-151.0,0.00041434,120]
[391565370,1760657439190,-40219.2883579,0.00041434,3]
[391565371,1760657439199,-1359809.9868,0.00041444,7]
[391565372,1760657439208,-151.0,0.00041444,120]
[391565373,1760657439217,-151.0,0.00041444,120]
[391565374,1760657439223,-151.0,0.00041444,120]
[391565375,1760657439233,-151.0,0.00041444,2]
[391565376,1760657439242,-922.35288,0.00041444,120]
[391565377,1760657439252,-922.35288,0.00041444,120]
[391565378,1760657439262,-922.35288,0.00041444,120]
[391565379,1760657439272,-922.35288,0.00041444,120]
[391565380,1760657439281,-199.800285,0.00041444,120]
[391565381,1760657439290,-199.800285,0.00041444,120]
[391565382,1760657439299,-199.800285,0.00041444,120]
[391565383,1760657439308,-199.800285,0.00041444,120]
[391565384,1760657439318,-151.0,0.00041444,120]
[391565385,1760657439325,-406.0,0.00041452,7]
[391565386,1760657439334,-331.56949515,0.00041473,10]
[391565387,1760657439344,-500.0,0.00041473,10]
[391565388,1760657439353,-500.0,0.00041473,2]
[391565389,1760657439362,-2514.7,0.000415,14]
[391565390,1760657439371,-683.1,0.000415,14]
[391565391,1760657439381,-1375.3181555,0.00041919,2]
[391565392,1760657439390,-1000.0,0.00042,120]
[391565393,1760657439399,-153.122323,0.00042011,5]
[391565394,1760657439408,-1000.0,0.00042021,10]
[391565395,1760657439417,-1000.0,0.00042021,2]
[391565396,1760657439426,-406.0,0.00042094,2]
[391565397,1760657439435,-1999.0,0.00042368,120]
[391565398,1760657439444,-412.8529123,0.00042546,2]
[391565399,1760657439454,-923.02496732,0.00042568,10]
[391565400,1760657439463,-1037.05869976,0.00042568,2]
[391565401,1760657439472,-406.0,0.00042587,7]
[391565402,1760657439481,-405.0,0.00042625,7]
[391565403,1760657439491,-1000.0,0.00042653,2]
[391565404,1760657439500,-1000.0,0.00042653,2]
[391565405,1760657439509,-1000.0,0.00042653,2]
[391565406,1760657439518,-1000.0,0.00042653,2]
[391565407,1760657439528,-1000.0,0.00042653,2]
[391565408,1760657439537,-1000.0,0.00042653,2]
[391565409,1760657439546,-17088.26,0.000427,36]
[391565410,1760657439555,-152.0,0.00042787,14]
[391565411,1760657439564,-163.0,0.00042787,14]
[391565412,1760657439573,-152.0,0.00042787,14]
[391565413,1760657439582,-163.0,0.00042787,14]
[391565414,1760657439591,-152.0,0.00042787,14]
[391565415,1760657439600,-163.0,0.00042787,14]
[391565416,1760657439609,-163.0,0.00042787,14]
[391565417,1760657439618,-152.0,0.00042787,14]
[391565418,1760657439627,-330.0,0.00042787,14]
[391565419,1760657439637,-152.0,0.00042787,14]
[391565420,1760657439646,-152.0,0.00042787,14]
[391565421,1760657439655,-330.0,0.00042787,14]
[391565422,1760657439664,-152.0,0.00042787,14]
[391565423,1760657439673,-152.0,0.00042787,14]
[391565424,1760657439682,-152.0,0.00042787,14]
[391565425,1760657439692,-152.0,0.00042787,14]
[391565426,1760657439701,-152.0,0.00042787,14]
[391565427,1760657439710,-152.0,0.00042787,14]
[391565428,1760657439719,-152.0,0.00042787,14]
[391565429,1760657439728,-152.0,0.00042787,14]
[391565430,1760657439738,-264.29383983,0.00042787,14]
[391565431,1760657439747,-152.0,0.00042787,14]
[391565432,1760657439757,-175.33456728,0.00042787,14]
[391565434,1760657439766,-406.0,0.00042793,2]
[391565436,1760657439775,-500.0,0.00042803,120]
[391565438,1760657439785,-597.87,0.000429,7]
[391565440,1760657439794,-405.0,0.00042933,2]
[391565441,1760657439803,-405.0,0.00042935,2]
[391565442,1760657439812,-150.0,0.00042973,10]
[391565443,1760657439821,-30097.3917007,0.0004299,120]
[391565444,1760657439830,-1000.0,0.00043,120]
[391565445,1760657439839,-6570.02302447,0.00043,30]
[391565446,1760657439848,-624788.23015329,0.00043,120]
[391565447,1760657439857,-285.53625724,0.00043,120]
[391565449,1760657439866,-405.0,0.00043206,2]